bitfinex/quotes_ETHUSD_20251206
["timestamp","ask_amount","ask_price","bid_price","bid_amount"]
[1765058985617,1.83208163,3040.9,3040.8,0.001]
[1765058998955,1.18178163,3040.9,3040.8,0.001]
[1765058999629,1.66578163,3040.9,3040.8,0.001]
[1765059001453,1.18178163,3040.9,3040.8,0.001]
[1765059001653,1.66578163,3040.9,3040.8,0.001]
[1765059004059,1.18178163,3040.9,3040.8,0.001]
[1765059007565,1.66578163,3040.9,3040.8,0.001]
[1765059018870,1.18178163,3040.9,3040.8,0.001]
[1765059035286,1.31481634,3041.3,3040.8,0.4584]
[1765059035585,0.4856,3041.2,3040.8,0.001]
[1765059036086,1.31481634,3041.3,3040.8,0.001]
[1765059036286,2.03513411,3041.3,3040.8,0.001]
[1765059036582,0.4856,3041.2,3040.8,0.001]
[1765059038378,1.31481634,3040.9,3040.8,0.001]
[1765059038773,1.31481634,3040.9,3040.8,0.4584]
[1765059039097,6.37771056,3040.9,3040.8,0.001]
[1765059039394,6.64067383,3040.9,3040.8,0.001]
[1765059057400,6.64067383,3040.9,3040.0,0.001]
[1765059057401,0.3299,3040.4,3040.0,0.001]
[1765059057700,0.519,3040.3,3040.0,0.001]
[1765059058002,0.519,3040.3,3040.0,0.4827]
[1765059058295,0.519,3040.3,3040.2,0.4935]
[1765059058682,3.80814909,3040.3,3040.2,0.4935]
[1765059061212,0.519,3040.3,3040.2,0.4935]
[1765059061416,1.31481634,3040.5,3040.2,7.30562973]
[1765059061711,1.31481634,3040.5,3040.4,6.33042973]
[1765059061884,1.31481634,3040.5,3040.4,6.82292973]
[1765059062214,1.31481634,3040.5,3040.4,7.30462973]
[1765059062711,1.31481634,3040.5,3040.4,0.4925]
[1765059062895,4.60374908,3040.5,3040.2,0.001]
[1765059063088,1.31481634,3040.3,3040.2,0.001]
[1765059063293,1.31481634,3040.3,3040.2,0.4827]
[1765059063494,1.31481634,3040.3,3040.2,0.9752]
[1765059080126,1.31481634,3040.3,3040.2,0.4935]
[1765059113667,1.31481634,3040.3,3040.2,0.001]
[1765059118765,1.31481634,3040.3,3040.2,0.5003]
[1765059118973,4.60379281,3040.5,3040.2,0.001]
[1765059119161,1.31481634,3040.3,3040.2,0.001]
[1765059120966,1.81221634,3040.3,3040.2,0.001]
[1765059122085,6.3443739,3040.3,3040.2,0.001]
[1765059122310,6.88855954,3040.3,3040.2,0.001]
[1765059123596,6.78855954,3040.3,3040.2,0.001]
[1765059123782,8.26670472,3040.3,3040.2,0.001]
[1765059127647,8.26670472,3040.3,3039.5,0.002]
[1765059127648,10.81724,3039.7,3039.5,0.002]
[1765059127855,13.07132417,3039.6,3039.5,0.002]
[1765059128066,7.72547067,3039.6,3039.5,0.002]
[1765059128350,9.50135779,3039.6,3039.5,0.002]
[1765059128752,12.40797879,3039.6,3039.5,0.002]
[1765059129070,6.90778779,3039.6,3039.5,0.002]
[1765059134991,5.81248779,3039.6,3039.5,0.002]
[1765059135288,6.80778779,3039.6,3039.5,0.002]
[1765059135585,6.33148779,3039.6,3039.5,0.002]
[1765059135779,6.80778779,3039.6,3039.5,0.002]
[1765059148595,6.33148779,3039.6,3039.5,0.002]
[1765059148980,6.80178779,3039.6,3039.5,0.002]
[1765059149381,6.28278779,3039.6,3039.5,0.002]
[1765059149571,6.80178779,3039.6,3039.5,0.002]
[1765059153905,6.90178779,3039.6,3039.5,0.002]
[1765059156010,19.75638785,3039.6,3039.5,0.002]
[1765059156307,9.14928779,3039.6,3039.5,0.002]
[1765059158110,6.90178779,3039.6,3039.5,0.002]
[1765059159510,6.80178779,3039.6,3039.5,0.002]
[1765059162289,5.83408779,3039.6,3039.5,0.002]
[1765059162489,5.83408779,3039.6,3039.5,0.4916]
[1765059171201,4.66626187,3039.6,3039.5,0.4916]
[1765059172854,3.28990656,3039.6,3039.5,0.4916]
[1765059173000,3.80890656,3039.6,3039.5,0.967]
[1765059178201,0.519,3039.6,3039.5,0.967]
[1765059180243,1.31481634,3039.9,3039.5,7.30135085]
[1765059180441,1.83381634,3040.1,3039.8,6.82545085]
[1765059180644,1.31481634,3039.9,3039.6,0.4754]
[1765059180931,1.31481634,3039.9,3039.6,3.76530656]
[1765059181137,1.83381634,3040.1,3039.8,6.82545085]
[1765059181331,1.83381634,3040.1,3040.0,0.4911]
[1765059181708,1.83381634,3040.1,3040.0,0.9665]
[1765059182325,1.31481634,3040.1,3040.0,7.30085085]
[1765059182509,0.519,3040.4,3040.0,7.30085085]
[1765059182709,1.31481634,3040.3,3040.2,0.4911]
[1765059182920,1.31481634,3040.3,3040.1,0.652]
[1765059183329,1.31481634,3040.3,3040.2,0.4911]
[1765059185239,1.31481634,3040.9,3040.2,7.30085085]
[1765059185420,0.001,3041.0,3040.7,6.82545085]
[1765059185628,0.001,3041.0,3040.9,6.82545085]
[1765059185831,0.001,3041.0,3040.9,7.30085085]
[1765059186551,0.001,3041.0,3040.9,10.58935096]
[1765059186708,0.001,3041.0,3040.9,16.92370181]
[1765059186913,0.001,3041.0,3040.9,10.58935096]
[1765059187114,0.001,3041.0,3040.9,17.05533596]
[1765059188416,0.001,3041.0,3040.9,17.46083996]
[1765059188740,0.001,3041.3,3041.0,0.72559411]
[1765059188953,0.001,3041.3,3041.2,7.00615085]
[1765059189139,0.001,3041.3,3041.2,7.52515085]
[1765059189453,0.001,3041.3,3041.2,8.00055085]
[1765059190351,0.001,3041.3,3041.2,9.13164896]
[1765059190515,0.001,3041.9,3041.5,6.82545085]
[1765059190717,0.001,3041.9,3041.8,6.82545085]
[1765059191186,0.001,3041.9,3041.8,7.30085085]
[1765059191739,0.001,3041.9,3041.8,10.58837797]
[1765059192141,0.001,3041.9,3041.8,16.92272882]
[1765059192517,0.001,3041.9,3041.8,10.58837797]
[1765059192718,0.001,3041.9,3041.8,16.92272882]
[1765059193943,0.001,3041.9,3041.8,17.64832293]
[1765059194154,0.001,3041.9,3041.8,11.31397208]
[1765059194362,0.001,3041.9,3041.8,18.05382693]
[1765059195349,0.001,3042.2,3041.9,1.13109811]
[1765059195662,0.001,3042.2,3042.1,6.82545085]
[1765059195836,0.001,3042.6,3042.2,6.97969372]
[1765059196022,0.001,3042.6,3042.5,13.1598017]
[1765059196226,0.001,3042.6,3042.5,13.6788017]
[1765059196428,0.001,3042.6,3042.5,14.87979581]
[1765059196759,0.001,3042.6,3042.5,8.54544496]
[1765059196957,0.001,3042.6,3042.5,8.67700508]
[1765059197963,0.001,3042.6,3042.5,11.96377582]
[1765059198683,0.001,3042.6,3042.5,5.11042497]
[1765059198860,0.001,3042.6,3042.5,11.8322157]
[1765059200363,0.001,3043.2,3042.6,1.13109811]
[1765059200669,0.001,3043.2,3043.1,6.95045085]
[1765059200841,0.001,3043.2,3043.1,7.46845085]
[1765059201155,0.001,3043.2,3043.1,7.96365085]
[1765059202341,0.001,3043.2,3043.1,11.24977355]
[1765059204361,0.001,3043.2,3043.1,11.65527755]
[1765059204578,0.002,3044.1,3043.2,1.13109811]
[1765059204729,0.002,3044.1,3044.0,6.80845085]
[1765059205429,0.002,3044.1,3044.0,7.30365085]
[1765059206865,0.002,3044.1,3044.0,6.80845085]
[1765059207183,0.002,3044.1,3044.0,10.09360196]
[1765059207852,0.002,3044.1,3044.0,10.58880196]
[1765059208254,0.002,3044.1,3044.0,7.30365085]
[1765059208458,0.002,3044.1,3044.0,10.58880196]
[1765059209367,0.002,3044.1,3044.0,10.72030758]
[1765059211198,0.002,3044.5,3044.0,10.72030758]
[1765059211199,0.002,3045.1,3045.0,6.33435085]
[1765059211455,0.002,3045.1,3045.0,7.30365085]
[1765059212680,0.002,3045.1,3045.0,10.58772309]
[1765059216669,0.002,3045.1,3045.0,11.7188212]
[1765059216988,0.002,3045.1,3045.0,12.1957212]
[1765059217198,0.002,3045.1,3045.0,11.7188212]
[1765059217789,0.4672,3045.1,3045.0,10.8620172]
[1765059217985,0.002,3045.1,3045.0,11.8313172]
[1765059222397,0.002,3045.1,3045.0,11.80452982]
[1765059224212,0.002,3045.1,3045.0,11.71483382]
[1765059224374,0.002,3046.4,3045.7,1.13109811]
[1765059224574,0.05,3049.4,3048.2,0.6334]
[1765059224792,0.4769,3049.1,3048.3,2.42434479]
[1765059225002,0.4769,3049.1,3047.5,0.4952]
[1765059225003,0.4769,3049.1,3047.5,9.76656347]
[1765059225201,0.1835,3048.4,3048.3,0.98461053]
[1765059225388,0.1835,3048.4,3048.0,0.522]
[1765059225593,0.522,3049.5,3048.0,0.522]
[1765059225594,0.4769,3049.2,3048.3,6.78166347]
[1765059225822,0.4769,3049.2,3048.6,6.30756347]
[1765059226305,0.4769,3049.5,3048.9,6.30756347]
[1765059226493,0.4769,3049.5,3049.0,0.522]
[1765059226692,0.4769,3049.5,3049.1,0.522]
[1765059227374,0.1835,3049.9,3049.2,0.522]
[1765059227581,0.6604,3049.9,3049.3,6.55888236]
[1765059227779,0.6604,3049.9,3049.3,3.27944118]
[1765059227978,0.4769,3049.8,3049.3,3.27944118]
[1765059228196,0.4652,3049.4,3049.3,3.27944118]
[1765059228374,0.4652,3049.4,3049.3,3.80144118]
[1765059228775,0.4652,3049.4,3049.3,3.27944118]
[1765059228976,0.9421,3049.4,3049.0,0.522]
[1765059229188,0.1835,3049.9,3049.0,0.522]
[1765059229378,0.4769,3049.8,3049.2,3.27954873]
[1765059229802,0.4652,3049.3,3048.7,3.28006367]
[1765059230014,3.75581234,3049.8,3048.5,8.55648628]
[1765059230015,0.3709,3049.2,3049.1,3.27965629]
[1765059230189,3.46231516,3049.9,3049.1,3.27965629]
[1765059230190,0.4581,3049.7,3049.1,3.27965629]
[1765059230509,0.4581,3049.8,3049.1,3.27965629]
[1765059230888,0.4581,3049.7,3049.1,3.27965629]
[1765059232012,0.4581,3049.7,3048.9,3.27987065]
[1765059232183,0.37370077,3049.6,3048.9,3.27987065]
[1765059232577,0.4581,3049.5,3049.0,0.522]
[1765059233092,0.4581,3049.5,3048.9,0.522]
[1765059233093,0.4965,3049.1,3048.9,0.522]
[1765059233610,0.3586,3049.0,3048.9,0.522]
[1765059234182,0.8167,3049.0,3048.9,3.80187142]
[1765059234677,0.3586,3049.0,3048.4,0.72559411]
[1765059234915,0.3586,3049.0,3048.9,3.27987142]
[1765059235099,0.4965,3048.5,3048.2,6.56124926]
[1765059235415,0.4581,3048.8,3048.3,0.521]
[1765059235908,0.4965,3048.4,3048.1,3.28071295]
[1765059236085,0.4581,3048.8,3048.3,0.521]
[1765059236279,0.1854,3048.9,3048.2,3.28059502]
[1765059236280,0.4581,3048.7,3048.2,3.28059502]
[1765059236487,0.4965,3048.3,3048.2,4.52718913]
[1765059236693,0.4965,3048.3,3047.5,8.55648628]
[1765059236892,0.3567,3048.1,3047.6,7.083541]
[1765059237207,0.4581,3048.3,3047.7,0.72559411]
[1765059237891,0.4581,3048.3,3047.6,7.083541]
[1765059238316,0.4581,3048.3,3047.7,0.72559411]
[1765059238808,0.4581,3048.5,3047.7,0.72559411]
[1765059239001,0.4581,3048.5,3047.7,1.20849411]
[1765059239995,0.4581,3048.7,3047.7,1.20849411]
[1765059240190,0.1854,3048.9,3047.7,1.20849411]
[1765059240191,0.4581,3048.6,3047.7,0.72559411]
[1765059240390,0.1854,3048.9,3048.1,0.72559411]
[1765059240611,0.1854,3048.9,3048.5,0.4805]
[1765059240830,0.1854,3048.9,3048.6,0.521]
[1765059241887,0.1854,3048.9,3048.4,0.1593]
[1765059241888,0.6356,3048.9,3048.7,0.521]
[1765059242288,0.4806,3048.8,3048.7,0.521]
[1765059242714,0.4806,3048.8,3048.7,3.80108659]
[1765059243789,0.4806,3048.8,3048.7,3.28008659]
[1765059245721,0.4806,3048.8,3048.7,3.80108659]
[1765059246818,0.9308,3048.8,3048.7,0.521]
[1765059247694,0.9308,3048.8,3048.3,0.72559411]
[1765059247924,0.3802,3048.4,3048.3,0.72559411]
[1765059248223,0.4502,3048.7,3048.3,1.24659411]
[1765059249233,0.4502,3048.7,3048.4,3.28040939]
[1765059249433,0.4502,3048.7,3048.1,0.1593]
[1765059249434,0.4806,3048.2,3048.1,3.28065765]
[1765059249640,0.4806,3048.2,3047.1,1.35918596]
[1765059249796,0.4806,3048.2,3047.1,1.80101634]
[1765059250002,0.4806,3048.2,3048.0,3.28080826]
[1765059250209,0.4502,3048.1,3048.0,3.28080826]
[1765059250410,0.3802,3048.1,3048.0,3.28080826]
[1765059250825,4.59482615,3048.8,3048.1,3.28067092]
[1765059251026,0.4502,3048.4,3048.1,3.28067092]
[1765059251257,0.4806,3048.2,3048.0,3.28080826]
[1765059253404,0.3802,3048.1,3048.0,3.28080826]
[1765059253835,0.4502,3048.4,3048.0,3.76130826]
[1765059254143,0.4502,3048.4,3047.9,0.521]
[1765059254144,0.4806,3048.1,3047.9,0.521]
[1765059254433,0.3802,3048.0,3047.9,3.80194753]
[1765059255532,0.3802,3048.0,3047.6,0.87298596]
[1765059255737,0.8304,3048.0,3047.7,0.521]
[1765059255937,0.8304,3048.0,3047.8,3.28105518]
[1765059256138,0.4502,3047.9,3047.8,3.28105518]
[1765059256338,0.9308,3047.9,3047.8,3.28105518]
[1765059256542,0.4806,3047.9,3047.8,3.28105518]
[1765059256904,1.1131,3047.9,3047.7,3.80212894]
[1765059257106,0.3814,3047.8,3047.7,3.80212894]
[1765059258909,0.3814,3047.8,3047.3,0.87298596]
[1765059259140,0.4502,3047.8,3047.3,3.28159354]
[1765059259645,0.4502,3048.4,3047.7,0.4805]
[1765059259843,4.59504756,3048.6,3047.8,1.0015]
[1765059260013,0.4502,3048.3,3047.8,1.0015]
[1765059260342,0.4502,3048.3,3047.8,0.521]
[1765059260642,0.4502,3048.3,3047.8,3.80203991]
[1765059263019,0.93942262,3048.7,3047.9,0.72559411]
[1765059263339,0.4614,3048.7,3048.2,0.4835]
[1765059263543,0.4614,3048.7,3048.3,0.521]
[1765059264739,0.1854,3048.9,3048.3,0.521]
[1765059265045,0.1854,3048.9,3048.4,3.28040939]
[1765059266417,0.6468,3048.9,3048.4,3.28040939]
[1765059266639,3.27967409,3049.1,3048.4,3.74400939]
[1765059266640,0.4614,3049.1,3048.4,3.74400939]
[1765059266850,0.6449,3049.9,3049.0,0.4835]
[1765059267051,1.96659837,3049.8,3049.2,3.27954873]
[1765059267250,0.65178203,3049.8,3049.2,3.27954873]
[1765059267542,0.1835,3050.1,3049.7,0.4835]
[1765059267743,0.6449,3050.1,3049.8,0.521]
[1765059268113,0.4872,3049.9,3049.8,0.521]
[1765059268616,0.9486,3049.9,3049.1,3.27961881]
[1765059268814,0.9486,3049.9,3049.2,0.521]
[1765059269018,0.4614,3049.8,3049.3,3.27944118]
[1765059269323,0.4614,3049.8,3049.2,0.521]
[1765059269324,0.4614,3049.8,3049.4,0.521]
[1765059269530,0.4614,3049.8,3049.2,3.27950906]
[1765059269729,0.4872,3049.3,3049.2,3.27950906]
[1765059269916,0.4872,3049.3,3049.2,0.521]
[1765059270131,0.9486,3049.3,3049.2,0.521]
[1765059271049,0.9486,3049.3,3048.8,3.27997371]
[1765059271232,0.3699,3049.2,3048.9,1.24659411]
[1765059271843,0.3699,3049.2,3048.9,0.72559411]
[1765059272043,0.8313,3049.2,3049.0,0.521]
[1765059272448,0.486,3049.1,3048.8,0.72559411]
[1765059272646,0.4614,3049.1,3048.9,0.521]
[1765059273020,0.4872,3049.0,3048.9,0.521]
[1765059273219,0.4872,3049.0,3048.9,3.80087142]
[1765059273919,0.4614,3049.2,3048.9,3.79987142]
[1765059274115,3.27879602,3049.9,3048.9,7.56324284]
[1765059274436,1.31481634,3049.7,3048.9,7.56324284]
[1765059274953,0.4614,3049.6,3048.9,7.56324284]
[1765059275847,0.4614,3049.6,3048.9,4.28337142]
[1765059276222,0.4614,3049.6,3048.9,7.56324284]
[1765059276949,0.4872,3049.0,3048.9,3.79987142]
[1765059277252,0.4614,3049.6,3048.9,3.79987142]
[1765059277453,0.83544378,3049.6,3048.9,4.28337142]
[1765059277747,0.37404378,3049.6,3048.9,4.28337142]
[1765059277954,0.4614,3049.7,3048.9,7.56324284]
[1765059278119,3.27894844,3049.8,3048.9,7.56324284]
[1765059278120,0.4614,3049.6,3048.9,7.56324284]
[1765059278521,0.4614,3049.6,3048.9,4.28337142]
[1765059279858,0.4614,3049.6,3048.9,7.04324284]
[1765059280152,0.4614,3049.6,3049.0,0.52]
[1765059280654,3.27904069,3049.7,3049.0,0.52]
[1765059280821,0.78726726,3049.7,3049.0,0.52]
[1765059281534,0.4614,3049.6,3049.0,0.52]
[1765059282944,0.4614,3049.6,3049.1,3.27965629]
[1765059283656,0.78726726,3049.7,3049.1,7.18221258]
[1765059283856,1.31481634,3049.9,3049.1,7.18221258]
[1765059284059,0.4614,3049.7,3049.1,7.18221258]
[1765059285166,3.27887273,3049.9,3049.1,3.43895629]
[1765059285452,3.27887273,3049.9,3049.1,3.90255629]
[1765059285633,0.4614,3049.8,3049.1,7.18221258]
[1765059285832,0.4614,3049.8,3049.1,3.90255629]
[1765059286654,0.4614,3049.8,3049.1,7.18221258]
[1765059286824,0.4614,3049.8,3049.1,3.90255629]
[1765059287323,3.74034914,3049.8,3049.1,3.90255629]
[1765059287540,3.74034914,3049.8,3049.1,3.90255512]
[1765059287734,0.4614,3049.7,3049.1,7.18221141]
[1765059287941,0.4614,3049.7,3049.1,3.90255512]
[1765059288139,0.4614,3050.0,3049.6,0.4835]
[1765059288456,0.4614,3050.0,3049.6,0.52]
[1765059289036,0.1835,3050.1,3049.6,0.52]
[1765059289348,0.6449,3050.1,3049.6,0.52]
[1765059289549,0.6449,3050.1,3049.7,3.27901105]
[1765059290123,0.1835,3050.1,3049.7,3.27901105]
[1765059290325,0.6498,3050.3,3049.8,6.2891161]
[1765059290741,0.1969,3050.3,3050.0,6.2891161]
[1765059291146,0.6498,3050.3,3050.0,6.2891161]
[1765059291347,0.4733,3050.1,3050.0,6.2891161]
[1765059291937,0.4733,3050.1,3050.0,6.8091161]
[1765059294649,0.4733,3050.1,3050.0,6.2891161]
[1765059294960,0.9563,3050.1,3050.0,6.8091161]
[1765059295351,0.4733,3050.1,3050.0,6.8091161]
[1765059296232,0.1969,3050.3,3050.0,6.8091161]
[1765059296554,0.6799,3050.3,3050.0,6.8091161]
[1765059296856,0.4876,3050.1,3050.0,6.8091161]
[1765059299160,0.9706,3050.1,3050.0,6.8091161]
[1765059299875,0.9706,3050.1,3050.0,0.52]
[1765059300165,0.4876,3050.1,3050.0,0.52]
[1765059300352,0.00080944,3050.4,3050.0,4.25493746]
[1765059300556,0.00080944,3050.4,3050.3,6.2891161]
[1765059301058,0.97140944,3050.4,3050.1,0.52]
[1765059301262,0.48380944,3050.4,3050.1,0.52]
[1765059301456,0.4876,3050.2,3050.1,0.52]
[1765059302267,0.9706,3050.2,3050.1,0.52]
[1765059302643,0.4876,3050.2,3050.1,0.52]
[1765059302843,0.00080944,3050.4,3050.1,3.79858103]
[1765059303064,0.00080944,3050.4,3050.2,6.2891161]
[1765059303841,0.4876,3050.3,3050.1,0.52]
[1765059304042,0.3464,3050.2,3050.1,0.52]
[1765059304478,0.8294,3050.2,3050.1,0.52]
[1765059304641,0.3464,3050.2,3050.1,0.52]
[1765059304842,0.3464,3050.2,3050.0,6.8091161]
[1765059305042,0.3464,3050.2,3050.0,9.56780288]
[1765059305344,0.3464,3050.2,3050.0,10.08776949]
[1765059305545,0.4862,3050.1,3050.0,6.8091161]
[1765059305748,0.4862,3050.1,3050.0,6.2891161]
[1765059305945,0.4862,3050.1,3050.0,6.8091161]
[1765059306191,0.9692,3050.1,3050.0,6.8091161]
[1765059307471,0.00080944,3050.4,3050.0,10.54410462]
[1765059307674,0.4876,3050.1,3050.0,6.8091161]
[1765059307846,0.48380944,3050.4,3050.0,6.8091161]
[1765059308656,0.48380944,3050.4,3050.0,10.08778693]
[1765059309245,0.4876,3050.1,3050.0,10.08778693]
[1765059309483,0.4876,3050.1,3050.0,6.8091161]
[1765059309666,0.4876,3050.1,3050.0,10.08780462]
[1765059309964,0.4876,3050.1,3050.0,6.8091161]
[1765059310150,0.00080944,3050.4,3050.0,23.85349776]
[1765059310356,0.00080944,3050.4,3050.3,6.7454161]
[1765059310753,0.00080944,3050.4,3050.3,7.2083161]
[1765059310983,0.00080944,3050.4,3050.3,10.48668216]
[1765059312373,0.00080944,3050.4,3050.3,11.00668216]
[1765059313271,0.00080944,3050.4,3050.3,10.54378216]
[1765059313789,0.00080944,3050.4,3050.3,6.2891161]
[1765059313943,0.48840944,3050.4,3050.3,6.2891161]
[1765059314145,0.97140944,3050.4,3050.3,6.8091161]
[1765059314344,0.97140944,3050.4,3050.1,6.2891161]
[1765059314574,0.4876,3050.2,3050.1,9.56769713]
[1765059314872,0.4876,3050.2,3050.1,10.08769713]
[1765059315066,0.4876,3050.2,3050.1,6.8091161]
[1765059316078,0.9706,3050.2,3050.1,6.8091161]
[1765059316276,0.9706,3050.2,3050.0,0.52]
[1765059316475,0.9706,3050.2,3050.0,6.8091161]
[1765059316676,0.8294,3050.1,3050.0,6.8091161]
[1765059317576,0.8294,3050.1,3049.6,3.2791007]
[1765059317577,0.8294,3050.1,3049.6,3.2790567]
[1765059317776,3.27907734,3050.4,3049.7,3.79800237]
[1765059317777,0.4862,3049.9,3049.7,3.79800237]
[1765059317962,0.4862,3049.9,3049.8,6.2891161]
[1765059318283,0.1852,3049.9,3049.8,6.2891161]
[1765059318481,0.6728,3049.9,3049.8,6.2891161]
[1765059318775,1.1558,3049.9,3049.8,6.2891161]
[1765059319685,1.1558,3049.9,3049.7,0.519]
[1765059319877,0.8294,3049.8,3049.7,0.519]
[1765059320100,0.8294,3049.8,3049.6,6.2891161]
[1765059320293,0.4862,3049.7,3049.6,6.8081161]
[1765059320462,0.9627,3049.7,3049.4,6.2891161]
[1765059320660,0.3543,3049.6,3049.4,6.8081161]
[1765059320865,0.4996,3049.5,3049.4,6.8081161]
[1765059321299,0.47730944,3050.4,3049.4,7.2616161]
[1765059321497,0.4765,3050.4,3050.1,6.2891161]
[1765059321712,0.4996,3050.2,3049.9,6.8091161]
[1765059321874,7.03311315,3050.4,3049.5,6.2891161]
[1765059322073,7.03311315,3050.4,3049.8,0.52]
[1765059322074,1.18001132,3050.3,3049.8,0.52]
[1765059322275,0.6842,3049.9,3049.8,0.52]
[1765059322781,1.1607,3049.9,3049.8,0.52]
[1765059323369,1.1607,3049.9,3049.5,6.2891161]
[1765059323573,0.818,3049.8,3049.5,6.8091161]
[1765059323901,0.4981,3049.6,3049.5,6.8091161]
[1765059324395,0.9746,3049.6,3049.5,6.8091161]
[1765059324804,0.9746,3049.6,3049.5,0.52]
[1765059326104,0.9746,3049.6,3049.4,0.52]
[1765059326431,0.3431,3049.4,3049.1,6.2891161]
[1765059326794,0.4965,3049.2,3048.5,5.0262389]
[1765059327012,0.4765,3049.4,3048.9,6.2891161]
[1765059327013,0.3446,3049.1,3048.9,6.2891161]
[1765059327218,0.3446,3049.1,3049.0,0.52]
[1765059327414,0.4765,3049.1,3049.0,0.52]
[1765059327606,0.9761,3049.1,3049.0,0.52]
[1765059328414,0.9761,3049.1,3048.4,0.72559411]
[1765059328620,0.3415,3049.0,3048.7,6.2891161]
[1765059328815,0.3415,3049.0,3048.9,6.2891161]
[1765059329831,0.3415,3049.0,3048.8,6.2891161]
[1765059330325,0.9746,3048.9,3048.8,6.2891161]
[1765059330630,1.1592,3048.9,3048.6,6.2891161]
[1765059330822,0.3399,3048.6,3048.5,0.52]
[1765059331526,0.8164,3048.6,3048.5,0.52]
[1765059331929,0.8164,3048.6,3048.0,0.72559411]
[1765059331930,0.8164,3048.6,3048.0,6.2891161]
[1765059332131,0.973,3048.5,3048.3,0.52]
[1765059332427,0.973,3048.5,3048.3,6.2891161]
[1765059332594,0.3414,3048.4,3048.3,6.2891161]
[1765059332799,0.8179,3048.4,3048.3,6.2891161]
[1765059333100,0.8179,3048.4,3048.1,0.52]
[1765059333328,0.4949,3048.2,3048.1,0.52]
[1765059333816,0.9714,3048.2,3048.1,0.52]
[1765059334229,0.4949,3048.2,3048.1,0.52]
[1765059335241,0.4765,3048.4,3048.1,3.80073225]
[1765059335642,0.4765,3048.4,3048.2,6.2891161]
[1765059336848,0.4765,3048.4,3048.1,3.80073225]
[1765059336849,0.4765,3048.4,3048.1,0.52]
[1765059337056,0.4765,3048.4,3048.1,6.8091161]
[1765059338424,0.4996,3048.2,3048.1,6.8091161]
[1765059338831,0.9761,3048.2,3047.9,0.001]
[1765059339040,0.3383,3048.0,3047.9,0.001]
[1765059339562,0.8148,3048.0,3047.9,0.001]
[1765059340441,1.68390735,3048.0,3047.9,0.001]
[1765059340865,4.96474724,3048.0,3047.9,0.001]
[1765059341233,5.06474724,3048.0,3047.9,0.001]
[1765059341472,6.19584535,3048.0,3047.9,0.001]
[1765059342282,8.21692535,3048.0,3047.9,0.001]
[1765059344086,6.19584535,3048.0,3047.9,0.001]
[1765059344608,8.76513835,3048.0,3047.9,0.001]
[1765059345792,8.53150835,3048.0,3047.9,0.001]
[1765059349405,6.19584535,3048.0,3047.9,0.001]
[1765059351895,8.41958435,3048.0,3047.9,0.001]
[1765059353913,6.19584535,3048.0,3047.9,0.001]
[1765059357323,9.44244935,3048.0,3047.9,0.001]
[1765059357526,6.19584535,3048.0,3047.9,0.001]
[1765059358031,8.36589035,3048.0,3047.9,0.001]
[1765059358596,6.19584535,3048.0,3047.9,0.001]
[1765059360031,9.07077735,3048.0,3047.9,0.001]
[1765059362035,6.19584535,3048.0,3047.9,0.001]
[1765059366023,5.21384135,3048.0,3047.9,0.001]
[1765059366206,3.79983989,3048.0,3047.9,0.4776]
[1765059366936,1.31481634,3048.3,3047.9,0.9755]
[1765059367125,1.31481634,3048.3,3048.2,0.6359]
[1765059367333,1.31481634,3048.5,3048.2,0.6359]
[1765059367651,1.31481634,3048.5,3048.4,0.4766]
[1765059367803,2.04041045,3048.5,3048.4,0.4766]
[1765059368218,8.60101401,3048.5,3048.2,0.1593]
[1765059368415,1.31481634,3048.3,3048.2,0.1593]
[1765059368943,1.31481634,3048.3,3048.2,0.6359]
[1765059369148,1.79351634,3048.3,3047.9,0.001]
[1765059369443,1.31481634,3048.0,3047.9,0.001]
[1765059369757,1.31481634,3048.3,3048.2,0.6359]
[1765059369909,1.31481634,3048.3,3048.2,1.1338]
[1765059370105,2.56041045,3048.5,3048.2,1.1338]
[1765059370306,1.83481634,3048.5,3048.4,0.4766]
[1765059371519,1.31481634,3048.7,3048.4,0.4766]
[1765059371720,4.59468802,3048.9,3048.6,0.4766]
[1765059371919,4.59468802,3048.9,3048.2,0.1593]
[1765059371920,1.79351634,3048.7,3048.2,0.1593]
[1765059372239,1.31481634,3048.4,3048.3,0.4979]
[1765059372611,1.31481634,3048.4,3048.2,0.1593]
[1765059372812,0.3741,3048.3,3047.9,0.001]
[1765059373013,1.31481634,3048.2,3047.9,0.001]
[1765059373641,1.31481634,3048.0,3047.9,0.001]
[1765059373846,1.79351634,3048.0,3047.9,0.001]
[1765059374147,1.31481634,3048.0,3047.9,0.001]
[1765059374332,1.31481634,3048.0,3047.9,0.4776]
[1765059382161,1.31481634,3048.2,3047.9,0.4776]
[1765059382359,1.31481634,3048.0,3047.9,0.4776]
[1765059383460,0.52,3048.3,3047.9,0.4776]
[1765059383663,0.72559411,3048.8,3048.2,0.4929]
[1765059383836,0.72559411,3048.8,3048.6,0.4929]
[1765059384430,4.59448981,3049.1,3048.6,0.9542]
[1765059384431,1.31481634,3049.1,3048.6,0.9542]
[1765059384662,1.31481634,3048.9,3048.6,0.4613]
[1765059384964,1.31481634,3048.9,3048.7,0.4613]
[1765059385163,1.31481634,3048.9,3048.8,0.4929]
[1765059386963,0.519,3049.2,3048.8,0.9542]
[1765059387159,0.405504,3049.7,3049.1,0.6522]
[1765059387160,4.59406466,3049.5,3049.1,0.6522]
[1765059387351,0.72559411,3049.4,3049.1,0.6522]
[1765059387664,0.72559411,3049.4,3049.1,0.1593]
[1765059387665,1.31481634,3049.4,3049.1,0.1593]
[1765059387867,1.31481634,3049.6,3049.3,0.4929]
[1765059388036,1.31481634,3049.4,3049.3,0.4929]
[1765059388937,4.59396513,3049.6,3049.3,0.4929]
[1765059389163,1.31481634,3049.6,3049.3,0.4929]
[1765059389545,4.59393491,3049.6,3049.3,0.4929]